[Event "Chessity Nationale Pupillendag 2018 - Groep H"]
[Site "Meppel, Netherlands"]
[Date "2018.06.23"]
[Round "7.1"]
[White "Huang, Luna"]
[Black "Thijsen, Freek"]
[Result "1-0"]
[TimeControl "15 min + 10 sec"]
[WhiteElo "488"]
[BlackElo "610"]

1. e4 {[%clk 00:15:19]} {[%emt 00:02:17]} e5 {[%clk 00:15:19]} {[%emt
00:00:01]} 2. Nf3 {[%clk 00:15:28]} {[%emt 00:00:01]} Nc6 {[%clk 00:15:28]}
{[%emt 00:00:01]} 3. Bc4 {[%clk 00:15:37]} {[%emt 00:00:01]} Bc5 {[%clk
00:15:30]} {[%emt 00:00:07]} 4. Nc3 {[%clk 00:15:42]} {[%emt 00:00:05]} Nf6
{[%clk 00:15:35]} {[%emt 00:00:04]} 5. d3 {[%clk 00:15:51]} {[%emt 00:00:02]}
O-O {[%clk 00:15:41]} {[%emt 00:00:04]} 6. Bg5 {[%clk 00:15:59]} {[%emt
00:00:02]} h6 {[%clk 00:15:37]} {[%emt 00:00:14]} 7. Bh4 {[%clk 00:16:06]}
{[%emt 00:00:04]} d6 {[%clk 00:15:32]} {[%emt 00:00:14]} 8. h3 {[%clk
00:16:05]} {[%emt 00:00:10]} Re8 {[%clk 00:15:28]} {[%emt 00:00:14]} 9. Nd5
{[%clk 00:16:07]} {[%emt 00:00:09]} g5 {[%clk 00:15:12]} {[%emt 00:00:25]} 10.
Bg3 {[%clk 00:16:01]} {[%emt 00:00:17]} Nxd5 {[%clk 00:15:18]} {[%emt
00:00:04]} 11. exd5 {[%emt 00:00:05]} Nb4 {[%clk 00:15:16]} {[%emt 00:00:08]}
12. c3 {[%clk 00:16:04]} {[%emt 00:00:17]} Na6 {[%clk 00:15:21]} {[%emt
00:00:04]} 13. b4 {[%clk 00:15:59]} {[%emt 00:00:15]} Bb6 {[%clk 00:15:25]}
{[%emt 00:00:06]} 14. O-O {[%clk 00:15:43]} {[%emt 00:00:27]} e4 {[%clk
00:15:24]} {[%emt 00:00:11]} 15. dxe4 {[%clk 00:15:50]} {[%emt 00:00:02]} Rxe4
{[%clk 00:15:30]} {[%emt 00:00:03]} 16. Bd3 {[%clk 00:15:41]} {[%emt 00:00:21]}
Re7 {[%clk 00:15:17]} {[%emt 00:00:22]} 17. Re1 {[%clk 00:15:33]} {[%emt
00:00:17]} Rxe1+ {[%clk 00:15:14]} {[%emt 00:00:13]} 18. Qxe1 {[%clk 00:15:41]}
{[%emt 00:00:03]} Qf6 {[%clk 00:14:38]} {[%emt 00:00:44]} 19. Rc1 {[%clk
00:15:20]} {[%emt 00:00:33]} c6 {[%clk 00:14:11]} {[%emt 00:00:37]} 20. dxc6
{[%clk 00:15:03]} {[%emt 00:00:27]} bxc6 {[%clk 00:14:16]} {[%emt 00:00:04]} 21.
Qe4 {[%clk 00:13:45]} {[%emt 00:01:29]} d5 {[%clk 00:13:45]} {[%emt 00:00:41]}
22. Qe8+ {[%clk 00:13:16]} {[%emt 00:00:37]} Kg7 {[%clk 00:13:53]} {[%emt
00:00:04]} 23. Be5 {[%clk 00:13:14]} {[%emt 00:00:11]} Bb7 {[%clk 00:13:41]}
{[%emt 00:00:23]} 24. Bxf6+ {[%clk 00:13:13]} {[%emt 00:00:11]} Kxf6 {[%clk
00:13:42]} {[%emt 00:00:08]} 25. Qe5# {[%clk 00:13:18]} {[%emt 00:00:06]} 1-0

[Event "Chessity Nationale Pupillendag 2018 - Groep H"]
[Site "Meppel, Netherlands"]
[Date "2018.06.23"]
[Round "7.2"]
[White "Zecha, Oscar"]
[Black "Terlouw, Wouter"]
[Result "1-0"]
[TimeControl "15 min + 10 sec"]
[WhiteElo "582"]
[BlackElo "878"]

1. d4 {[%clk 00:15:19]} {[%emt 00:00:45]} d5 {[%clk 00:15:17]} {[%emt
00:00:03]} 2. Nf3 {[%clk 00:15:26]} Nc6 {[%clk 00:15:26]} {[%emt 00:00:05]} 3.
Nc3 {[%clk 00:15:35]} Nf6 {[%clk 00:15:34]} {[%emt 00:00:03]} 4. Bf4 {[%emt
00:00:08]} Bf5 {[%emt 00:00:03]} 5. e3 {[%emt 00:00:04]} a6 {[%emt 00:00:06]} 6.
Bd3 {[%clk 00:15:49]} {[%emt 00:00:03]} Bg4 {[%emt 00:00:02]} 7. O-O {[%clk
00:15:54]} {[%emt 00:00:04]} e6 {[%clk 00:16:03]} {[%emt 00:00:02]} 8. h3
{[%clk 00:16:01]} {[%emt 00:00:04]} Bh5 {[%clk 00:16:07]} {[%emt 00:00:06]} 9.
Re1 {[%clk 00:16:04]} {[%emt 00:00:06]} Bb4 {[%clk 00:16:07]} {[%emt 00:00:10]}
10. a3 {[%clk 00:16:10]} {[%emt 00:00:05]} Ba5 {[%clk 00:16:14]} {[%emt
00:00:02]} 11. b4 {[%clk 00:16:18]} {[%emt 00:00:03]} Bb6 {[%clk 00:16:13]}
{[%emt 00:00:10]} 12. Na4 {[%clk 00:16:21]} {[%emt 00:00:07]} O-O {[%clk
00:16:05]} {[%emt 00:00:18]} 13. Nxb6 {[%clk 00:16:24]} {[%emt 00:00:07]} cxb6
{[%clk 00:16:11]} {[%emt 00:00:04]} 14. c4 {[%clk 00:16:23]} {[%emt 00:00:11]}
Re8 {[%clk 00:15:55]} {[%emt 00:00:25]} 15. b5 {[%clk 00:16:17]} {[%emt
00:00:17]} axb5 {[%clk 00:16:01]} {[%emt 00:00:04]} 16. cxb5 {[%clk 00:16:23]}
{[%emt 00:00:04]} Na5 {[%clk 00:16:09]} {[%emt 00:00:02]} 17. Rc1 {[%clk
00:16:05]} Rc8 {[%clk 00:16:13]} {[%emt 00:00:34]} 18. Be2 {[%clk 00:16:06]}
{[%emt 00:00:09]} Qd7 {[%clk 00:16:17]} {[%emt 00:00:06]} 19. Ne5 {[%clk
00:16:09]} {[%emt 00:00:07]} Bxe2 {[%clk 00:16:22]} {[%emt 00:00:05]} 20. Qxe2
{[%clk 00:16:16]} {[%emt 00:00:03]} Qe7 {[%clk 00:16:11]} {[%emt 00:00:18]} 21.
Rc2 {[%clk 00:15:43]} {[%emt 00:00:45]} Qxa3 {[%clk 00:16:07]} {[%emt
00:00:14]} 22. Rec1 {[%clk 00:15:28]} {[%emt 00:00:25]} Rxc2 {[%clk 00:16:04]}
{[%emt 00:00:13]} 23. Rxc2 {[%clk 00:15:34]} {[%emt 00:00:04]} h6 {[%clk
00:15:47]} {[%emt 00:00:28]} 24. Rc7 {[%clk 00:15:35]} {[%emt 00:00:08]} Rf8
{[%clk 00:14:59]} {[%emt 00:00:58]} 25. Qc2 {[%clk 00:15:29]} {[%emt 00:00:16]}
Qb4 {[%clk 00:14:09]} {[%emt 00:00:59]} 26. Rc8 {[%clk 00:15:15]} {[%emt
00:00:25]} Rxc8 {[%clk 00:14:05]} {[%emt 00:00:14]} 27. Qxc8+ {[%clk 00:15:21]}
{[%emt 00:00:03]} Kh7 {[%clk 00:14:13]} {[%emt 00:00:01]} 28. Nxf7 {[%clk
00:15:12]} {[%emt 00:00:19]} Ng8 {[%clk 00:13:30]} {[%emt 00:00:54]} 29. Qxe6
{[%clk 00:15:07]} {[%emt 00:00:15]} Qxb5 {[%clk 00:13:30]} {[%emt 00:00:10]} 30.
Qf5 {[%clk 00:15:01]} {[%emt 00:00:15]} g6 {[%clk 00:13:18]} {[%emt 00:00:23]}
31. Qe5 {[%clk 00:14:56]} {[%emt 00:00:13]} Qb1+ {[%clk 00:12:34]} {[%emt
00:00:57]} 32. Kh2 {[%clk 00:15:03]} {[%emt 00:00:03]} g5 {[%clk 00:12:42]} 33.
Qh8 {[%clk 00:14:59]} {[%emt 00:00:12]} Kg6 {[%clk 00:12:49]} {[%emt 00:00:05]}
34. Qxg8+ {[%clk 00:15:05]} {[%emt 00:00:04]} Kf5 {[%clk 00:12:34]} {[%emt
00:00:25]} 35. Qh7+ {[%clk 00:15:11]} {[%emt 00:00:03]} Kf6 {[%clk 00:12:38]}
{[%emt 00:00:07]} 36. Qxb1 {[%clk 00:15:18]} {[%emt 00:00:04]} Kxf7 {[%clk
00:12:39]} {[%emt 00:00:09]} 37. Qh7+ {[%clk 00:15:18]} {[%emt 00:00:10]} Kf6
{[%clk 00:12:46]} {[%emt 00:00:03]} 38. Be5+ {[%clk 00:15:23]} {[%emt
00:00:05]} Ke6 {[%clk 00:12:53]} {[%emt 00:00:04]} 39. Qg6+ {[%clk 00:15:20]}
{[%emt 00:00:12]} Ke7 {[%clk 00:12:58]} {[%emt 00:00:05]} 40. Qf6+ {[%clk
00:15:23]} {[%emt 00:00:07]} Kd7 {[%clk 00:13:04]} {[%emt 00:00:06]} 41. Qd6+
{[%clk 00:15:30]} {[%emt 00:00:02]} Ke8 {[%clk 00:13:12]} {[%emt 00:00:02]} 42.
Bf6 {[%clk 00:15:27]} {[%emt 00:00:13]} Nc6 {[%clk 00:13:20]} {[%emt 00:00:02]}
43. Qe6+ {[%clk 00:15:21]} {[%emt 00:00:14]} Kf8 {[%clk 00:13:23]} {[%emt
00:00:08]} 44. Qc8+ {[%clk 00:15:13]} {[%emt 00:00:19]} Kf7 {[%clk 00:13:30]}
{[%emt 00:00:03]} 45. Qxb7+ {[%clk 00:14:55]} {[%emt 00:00:27]} Kxf6 {[%clk
00:13:38]} {[%emt 00:00:03]} 46. Qxc6+ {[%clk 00:15:04]} {[%emt 00:00:01]} Kg7
{[%clk 00:13:46]} {[%emt 00:00:02]} 47. Qxb6 {[%clk 00:15:11]} Kh7 {[%clk
00:13:53]} {[%emt 00:00:06]} 48. Kg3 {[%clk 00:15:18]} Kg7 {[%clk 00:14:02]}
{[%emt 00:00:04]} 49. Kg4 {[%clk 00:15:27]} Kh7 {[%clk 00:14:10]} {[%emt
00:00:03]} 50. Kf5 {[%clk 00:15:35]} Kg7 {[%clk 00:14:19]} {[%emt 00:00:03]} 51.
Qg6+ {[%clk 00:15:43]} Kf8 {[%clk 00:14:26]} {[%emt 00:00:05]} 52. Qh7 {[%clk
00:15:41]} Ke8 {[%clk 00:14:29]} {[%emt 00:00:19]} 53. Ke6 {[%clk 00:15:47]} h5
{[%clk 00:14:32]} {[%emt 00:00:11]} 54. Qe7# 1-0